bitfinex-derivatives/quotes_SOLF0:USTF0_20251101
["timestamp","ask_amount","ask_price","bid_price","bid_amount"]
[1762002916957,2.71,186.33,186.31,5.02037469]
[1762002917157,7.22213094,186.32,186.3,5.02037469]
[1762002917365,7.22213094,186.32,186.28,6.70317974]
[1762002917366,2.71,186.3,186.26,5.02037469]
[1762002917563,7.22213094,186.29,186.27,75.62]
[1762002917763,2.71,186.29,186.27,75.62]
[1762002917967,4.49830109,186.28,186.27,75.62]
[1762002918658,2.71,186.32,186.27,80.64037469]
[1762002918858,8.97427257,186.31,186.28,5.02037469]
[1762002919067,4.49861449,186.3,186.28,5.02037469]
[1762002919261,2.71,186.32,186.28,5.02037469]
[1762002919470,8.97463451,186.31,186.28,5.02037469]
[1762002919763,4.49872059,186.3,186.28,5.02037469]
[1762002919962,2.71,186.32,186.28,5.02037469]
[1762002920155,11.68464159,186.31,186.28,5.02037469]
[1762002920353,4.49872381,186.3,186.28,5.02037469]
[1762002920559,2.71,186.31,186.28,5.02037469]
[1762002920762,4.49888902,186.3,186.28,5.02037469]
[1762002920967,2.71,186.31,186.28,5.02037469]
[1762002921167,2.71,186.31,186.27,75.62]
[1762002921168,2.93,186.29,186.27,5.02037469]
[1762002921359,2.93,186.29,186.28,75.62]
[1762002921559,2.93,186.28,186.27,5.02037469]
[1762002921755,2.93,186.28,186.27,80.64037469]
[1762002922771,2.93,186.38,186.27,80.64037469]
[1762002922965,2.93,186.36,186.27,80.64037469]
[1762002923166,2.93,186.34,186.27,80.64037469]
[1762002923368,2.93,186.32,186.27,80.64037469]
[1762002923672,2.93,186.3,186.27,80.64037469]
[1762002923872,4.49905961,186.29,186.27,80.64037469]
[1762002924074,2.93,186.3,186.27,80.64037469]
[1762002924272,4.4994782,186.29,186.27,80.64037469]
[1762002924573,2.93,186.3,186.27,80.64037469]
[1762002924762,4.49939022,186.29,186.27,80.64037469]
[1762002924967,2.93,186.3,186.27,80.64037469]
[1762002925275,4.49939022,186.29,186.28,5.02037469]
[1762002926276,4.49939022,186.29,186.28,5.00820916]
[1762002927377,4.50006659,186.29,186.28,5.00820916]
[1762002928275,4.50011802,186.29,186.28,75.62]
[1762002928772,7.43011802,186.29,186.28,75.62]
[1762002929972,7.43011802,186.29,186.28,80.62820916]
[1762002933187,11.90896295,186.29,186.28,75.62]
[1762002933882,7.43011802,186.29,186.28,75.62]
[1762002934186,7.43011802,186.29,186.28,80.62820916]
[1762002935890,11.90960824,186.29,186.28,80.62820916]
[1762002938095,2.93,186.28,186.27,5.00820916]
[1762002938283,2.93,186.27,186.26,5.00820916]
[1762002938486,11.90960824,186.27,186.26,61.82820916]
[1762002938686,7.40949022,186.27,186.26,61.82820916]
[1762002938888,11.91196778,186.27,186.26,61.82820916]
[1762002939897,11.91196778,186.27,186.26,80.62820916]
[1762002940693,11.91196778,186.27,186.26,5.00820916]
[1762002940894,11.91196778,186.27,186.26,80.62820916]
[1762002944305,11.91196778,186.27,186.26,5.00820916]
[1762002944601,11.91196778,186.27,186.26,64.04820916]
[1762002945101,11.91196778,186.27,186.26,59.04]
[1762002945705,7.43247756,186.27,186.26,64.04820916]
[1762002946403,4.50247756,186.27,186.26,64.04820916]
[1762002953707,4.50247756,186.27,186.26,80.64820916]
[1762002955810,7.28247756,186.27,186.26,80.64820916]
[1762002956113,11.76465412,186.27,186.26,80.64820916]
[1762002958198,11.76465412,186.27,186.26,75.64]
[1762002962104,8.98465412,186.27,186.26,82.34317974]
[1762002963112,8.98465412,186.27,186.26,75.64]
[1762002963311,8.98465412,186.27,186.26,82.34317974]
[1762002963699,8.99577767,186.27,186.26,82.34317974]
[1762002967414,8.99577767,186.27,186.26,75.64]
[1762002969417,8.99577767,186.27,186.26,77.7156077]
[1762002970210,8.99577767,186.27,186.26,84.41835111]
[1762002970409,8.99577767,186.27,186.26,77.7156077]
[1762002971114,8.99577767,186.27,186.26,84.41842088]
[1762002972315,8.99577767,186.27,186.26,77.7156077]
[1762002973618,2.83,186.33,186.26,77.7156077]
[1762002973919,2.83,186.33,186.3,7.10331778]
[1762002974118,2.83,186.33,186.31,75.64]
[1762002974314,2.83,186.39,186.31,80.66771008]
[1762002974518,2.83,186.39,186.32,5.02771008]
[1762002975311,2.83,186.39,186.33,2.0756077]
[1762002980611,2.94,186.32,186.23,5.70639449]
[1762002980816,2.94,186.23,186.16,5.42]
[1762002981119,2.94,186.2,186.16,5.42]
[1762002981320,2.94,186.2,186.11,0.93378949]
[1762002981616,2.94,186.18,186.07,2.0756077]
[1762002981820,2.94,186.16,186.03,2.0756077]
[1762002982023,2.94,186.14,186.04,22.67510681]
[1762002982217,3.9834526,186.13,186.04,0.93510681]
[1762002982418,2.94,186.14,186.05,57.22]
[1762002982618,6.91382222,186.13,186.05,57.22]
[1762002982808,2.94,186.13,186.05,57.22]
[1762002985518,10.90606149,186.12,186.05,57.22]
[1762002985712,10.90606149,186.11,186.05,57.22]
[1762002985910,10.90606149,186.1,186.05,57.22]
[1762002986110,10.90606149,186.09,186.05,57.22]
[1762002986422,5.9174446,186.08,186.05,57.22]
[1762002986731,5.9174446,186.07,186.03,2.0756077]
[1762002987026,5.9174446,186.06,186.04,71.72]
[1762002987323,5.9174446,186.05,186.04,71.72]
[1762002991627,5.9174446,186.05,186.04,76.12]
[1762002992827,5.9174446,186.05,186.04,77.2]
[1762002993032,2.94,186.13,186.04,77.2]
[1762002993330,2.85,186.11,186.04,76.12]
[1762002993526,10.67004001,186.1,186.02,0.93534558]
[1762002993729,10.67004001,186.09,186.03,72.5]
[1762002993920,5.70481772,186.08,186.03,72.5]
[1762002994227,5.70481772,186.07,186.03,77.3399]
[1762002994431,5.70481772,186.06,186.03,77.3399]
[1762002994626,5.70481772,186.05,186.03,77.3399]
[1762002994826,2.85,186.11,186.03,77.3399]
[1762002995030,10.6632051,186.1,186.03,77.3399]
[1762002995226,10.66174946,186.09,186.03,77.3399]
[1762002995426,10.66174946,186.08,186.03,77.3399]
[1762002995727,5.7014774,186.07,186.03,77.3399]
[1762002995926,2.85,186.11,186.03,77.3399]
[1762002996127,10.44409206,186.1,186.03,77.3399]
[1762002996327,10.44409206,186.09,186.03,77.3399]
[1762002996521,10.44409206,186.08,186.03,77.3399]
[1762002996723,5.48382255,186.07,186.03,77.3399]
[1762002996924,2.85,186.11,186.04,2.0756077]
[1762002997126,10.44139999,186.1,186.04,2.0756077]
[1762002997328,2.85,186.11,186.04,2.0756077]
[1762002997329,10.44139999,186.09,186.04,2.0756077]
[1762002997631,10.44139999,186.08,186.04,2.0756077]
[1762002997821,5.48240904,186.07,186.04,2.0756077]
[1762002998022,2.85,186.11,186.04,2.0756077]
[1762002998230,13.28825381,186.1,186.05,76.08]
[1762002998425,10.43825381,186.09,186.05,76.08]
[1762002998625,10.43825381,186.08,186.05,76.08]
[1762002998926,5.48075709,186.07,186.05,76.08]
[1762002999127,5.47980931,186.06,186.05,76.08]
[1762002999325,2.85,186.1,186.05,76.08]
[1762002999634,10.38297886,186.09,186.05,76.08]
[1762002999830,10.38297886,186.08,186.05,76.08]
[1762003000031,5.42669033,186.07,186.05,76.08]
[1762003000228,2.85,186.1,186.05,76.08]
[1762003000427,10.38052883,186.09,186.05,76.08]
[1762003000728,2.85,186.1,186.05,76.08]
[1762003000729,10.38052883,186.08,186.05,76.08]
[1762003000926,5.42540982,186.07,186.05,76.08]
[1762003001128,2.85,186.1,186.05,76.08]
[1762003001320,13.22950707,186.09,186.05,76.08]
[1762003001525,10.37950707,186.08,186.05,76.08]
[1762003001726,5.42487579,186.07,186.05,76.08]
[1762003001926,2.85,186.13,186.05,76.08]
[1762003002131,10.37952454,186.12,186.05,76.08]
[1762003002331,10.37952454,186.11,186.05,76.08]
[1762003002532,13.22952454,186.1,186.05,76.08]
[1762003002731,10.37952454,186.09,186.05,76.08]
[1762003002934,4.95462511,186.08,186.05,76.08]
[1762003003232,4.95462511,186.07,186.05,76.08]
[1762003003435,2.85,186.1,186.05,76.08]
[1762003003636,10.08350576,186.09,186.05,76.08]
[1762003003935,2.85,186.1,186.05,76.08]
[1762003003936,4.95394338,186.08,186.05,76.08]
[1762003004131,4.95394338,186.07,186.05,76.08]
[1762003004434,2.85,186.12,186.05,76.08]
[1762003004634,12.93341113,186.11,186.05,76.08]
[1762003004835,12.93341113,186.1,186.05,76.08]
[1762003005032,10.08341113,186.09,186.05,76.08]
[1762003005235,4.95389689,186.08,186.05,76.08]
[1762003005436,4.95389689,186.07,186.05,76.08]
[1762003005630,2.85,186.1,186.05,76.08]
[1762003005830,10.08371624,186.09,186.05,76.08]
[1762003006030,4.95404679,186.08,186.05,76.08]
[1762003006226,7.80404679,186.07,186.06,76.06]
[1762003006427,4.95404679,186.07,186.06,76.06]
[1762003007131,10.08383053,186.07,186.06,76.06]
[1762003018643,10.08383053,186.07,186.06,76.0]
[1762003032565,10.08383053,186.07,186.06,75.96]
[1762003033466,10.08383053,186.07,186.06,82.67154043]
[1762003034260,4.95404679,186.07,186.06,82.67154043]
[1762003034762,2.76,186.11,186.07,4.839]
[1762003034962,4.57861225,186.1,186.07,4.839]
[1762003035164,4.57861225,186.09,186.07,6.71154043]
[1762003035363,2.76,186.14,186.07,6.71154043]
[1762003035671,7.33819858,186.13,186.07,6.71154043]
[1762003035869,7.33819858,186.12,186.07,6.71154043]
[1762003036069,4.57819858,186.11,186.08,4.8385]
[1762003036270,4.57819858,186.1,186.09,75.96]
[1762003038164,4.57819858,186.1,186.09,75.94]
[1762003038571,2.66,186.15,186.1,4.8382]
[1762003040072,2.66,186.18,186.11,4.8377]
[1762003040273,2.66,186.18,186.12,75.94]
[1762003043963,2.66,186.18,186.12,80.7775]
[1762003045468,2.66,186.18,186.13,75.92]
[1762003045977,2.66,186.18,186.14,75.92]
[1762003046869,4.46528559,186.17,186.14,75.92]
[1762003047069,4.46528559,186.16,186.14,75.92]
[1762003047275,2.66,186.18,186.14,75.92]
[1762003047477,4.46372351,186.17,186.14,75.92]
[1762003047679,2.66,186.18,186.14,75.92]
[1762003047865,4.46372351,186.17,186.14,75.92]
[1762003048070,2.66,186.18,186.14,75.92]
[1762003048278,4.46272094,186.17,186.14,75.92]
[1762003048478,2.66,186.18,186.14,75.92]
[1762003048676,4.46272094,186.17,186.14,75.92]
[1762003048879,2.66,186.18,186.14,75.92]
[1762003049070,4.46272094,186.17,186.14,75.92]
[1762003049270,2.66,186.18,186.14,75.92]
[1762003049470,4.46182796,186.17,186.14,75.92]
[1762003049669,2.66,186.18,186.14,75.92]
[1762003049870,4.46182796,186.17,186.14,75.92]
[1762003050070,2.66,186.18,186.14,75.92]
[1762003050277,7.12103171,186.17,186.14,75.92]
[1762003050476,2.66,186.17,186.14,75.92]
[1762003053576,2.66,186.17,186.13,5.01071071]
[1762003053776,2.66,186.17,186.14,75.86]
[1762003054582,2.66,186.15,186.12,5.01071071]
[1762003054785,2.66,186.15,186.13,75.86]
[1762003059392,2.66,186.15,186.12,5.01071071]
[1762003059692,2.66,186.15,186.13,75.86]
[1762003060686,2.66,186.15,186.14,75.86]
[1762003063496,3.24951851,186.25,186.14,75.86]
[1762003063696,2.66,186.23,186.14,75.86]
[1762003063993,2.66,186.21,186.14,75.86]
[1762003064195,2.66,186.19,186.14,75.86]
[1762003064496,3.24951851,186.25,186.14,75.86]
[1762003064497,2.66,186.17,186.14,75.86]
[1762003064690,8.98775807,186.16,186.14,75.86]
[1762003064988,2.66,186.17,186.14,75.86]
[1762003065188,8.98878277,186.16,186.14,75.86]
[1762003065490,2.66,186.16,186.14,75.86]
[1762003066992,2.9,186.24,186.14,75.86]
[1762003067294,2.9,186.22,186.14,75.86]
[1762003067487,2.9,186.2,186.13,5.0133494]
[1762003067688,2.9,186.18,186.15,75.82]
[1762003067888,9.03124347,186.17,186.15,75.82]
[1762003068089,4.50073109,186.16,186.15,75.82]
[1762003068294,9.03243324,186.16,186.15,75.82]
[1762003072396,9.03243324,186.16,186.15,80.8333494]
[1762003072397,4.50073109,186.16,186.15,80.8333494]
[1762003072694,2.9,186.18,186.15,75.82]
[1762003072899,4.50356157,186.17,186.16,5.01848358]
[1762003074299,9.03862283,186.17,186.16,5.01848358]
[1762003077998,11.93862283,186.17,186.15,75.82]
[1762003078209,7.40621973,186.16,186.15,82.53154043]
[1762003078505,11.94325531,186.16,186.15,75.82]
[1762003078699,2.9,186.15,186.14,6.71154043]
[1762003079003,7.40621973,186.15,186.14,75.78]
[1762003079300,11.94424113,186.15,186.14,75.78]
[1762003081203,11.94424113,186.15,186.14,82.49154043]
[1762003082804,9.04424113,186.15,186.14,82.49154043]
[1762003083204,8.94670727,186.15,186.14,82.49154043]
[1762003083503,2.9,186.22,186.14,75.78]
[1762003083697,2.9,186.22,186.2,5.02769993]
[1762003083698,4.5437608,186.21,186.2,5.02769993]
[1762003084004,4.5437608,186.21,186.2,75.8]
[1762003084401,4.5437608,186.21,186.2,82.50359991]
[1762003085003,2.9,186.25,186.2,82.50359991]
[1762003085196,4.46365631,186.24,186.23,5.02494861]
[1762003085393,4.46365631,186.24,186.23,75.82]
[1762003087401,4.46365631,186.24,186.23,80.83749724]
[1762003088300,2.9,186.25,186.23,80.83749724]
[1762003089703,2.9,186.25,186.24,75.82]
[1762003089908,7.35378722,186.25,186.24,75.82]
[1762003092304,2.9,186.25,186.24,75.82]
[1762003092505,2.77,186.31,186.24,75.82]
[1762003092705,2.77,186.29,186.24,75.82]
[1762003093009,2.77,186.27,186.24,75.82]
[1762003093210,7.21978835,186.26,186.24,75.82]
[1762003093408,2.77,186.26,186.24,75.82]
[1762003094210,2.77,186.26,186.25,75.78]
[1762003094412,7.21773604,186.26,186.25,75.78]
[1762003095209,2.77,186.26,186.25,75.78]
[1762003095513,7.25417252,186.26,186.25,75.78]
[1762003095904,11.70086096,186.26,186.25,75.78]
[1762003096208,7.25417252,186.26,186.25,75.78]
[1762003096598,2.88,186.25,186.22,5.01749724]
[1762003096810,2.88,186.25,186.23,39.12]
[1762003097002,2.88,186.25,186.24,39.12]
[1762003097202,7.36336602,186.25,186.24,39.12]
[1762003097406,2.88,186.24,186.21,5.01749724]
[1762003097601,268.53032418,186.4,186.19,5.01749724]
[1762003097602,2.88,186.22,186.19,5.01749724]
[1762003097908,2.88,186.22,186.2,41.1]
[1762003098108,2.88,186.22,186.21,75.8]
[1762003098412,7.33065243,186.22,186.21,75.8]
[1762003098607,2.88,186.21,186.17,5.01749724]
[1762003098809,2.88,186.21,186.18,75.82]
[1762003102815,2.89,186.25,186.18,75.82]
[1762003103005,11.79125159,186.24,186.18,75.82]
[1762003103207,2.89,186.22,186.18,80.83749724]
[1762003103406,7.34381913,186.21,186.18,75.82]
[1762003103607,2.89,186.21,186.18,75.82]
[1762003103916,2.89,186.21,186.17,5.01749724]
[1762003104106,2.89,186.21,186.18,75.8]
[1762003104819,2.89,186.21,186.17,5.01749724]
[1762003105211,2.89,186.21,186.18,75.8]
[1762003107327,2.89,186.21,186.18,80.81749724]
[1762003108934,2.89,186.21,186.18,5.01749724]
[1762003109137,2.89,186.21,186.19,75.78]
[1762003109337,4.45785323,186.2,186.18,5.01749724]
[1762003109538,2.89,186.21,186.19,75.78]
[1762003109837,4.45785323,186.2,186.19,75.78]
[1762003110134,7.34785323,186.2,186.19,75.78]
[1762003110532,2.89,186.19,186.17,5.01749724]
[1762003110738,2.89,186.19,186.18,75.78]
[1762003110937,4.4583938,186.19,186.18,75.78]
[1762003111440,7.3483938,186.19,186.18,75.78]
[1762003112539,2.89,186.18,186.15,5.01749724]
[1762003112840,7.3483938,186.17,186.16,75.78]
[1762003113835,2.89,186.16,186.15,5.01749724]
[1762003114235,7.34911576,186.16,186.15,75.8]
[1762003115432,2.89,186.15,186.14,5.01749724]
[1762003116637,2.89,186.15,186.14,5.01356037]
[1762003117240,2.07636245,186.24,186.14,5.01356037]
[1762003117541,2.89,186.22,186.14,7.08992282]
[1762003117742,2.89,186.2,186.14,7.08992282]
[1762003117941,2.89,186.18,186.14,7.08992282]
[1762003118140,8.90962129,186.17,186.14,7.08992282]
[1762003118336,4.45846825,186.16,186.14,7.08992282]
[1762003118534,2.89,186.18,186.14,7.08992282]
[1762003118838,11.79912571,186.17,186.14,7.08992282]
[1762003119041,4.45820759,186.16,186.14,7.08992282]
[1762003119342,2.07636245,186.27,186.14,7.08992282]
[1762003119542,2.07636245,186.27,186.15,5.01356037]
[1762003119543,2.89,186.25,186.15,5.01356037]
[1762003119738,2.89,186.23,186.15,5.01356037]
[1762003119944,2.89,186.21,186.15,5.01356037]
[1762003120240,2.89,186.19,186.15,5.01356037]
[1762003120439,8.90838593,186.18,186.15,5.01356037]
[1762003120640,4.45783739,186.17,186.15,5.01356037]
[1762003120842,2.89,186.19,186.15,5.01356037]
[1762003121142,11.79818709,186.18,186.15,5.01356037]
[1762003121441,4.45758441,186.17,186.15,5.01356037]
[1762003121629,2.89,186.18,186.15,5.01356037]
[1762003121830,4.45553399,186.17,186.15,5.01356037]
[1762003122134,2.89,186.18,186.15,5.01356037]
[1762003122335,4.4548662,186.17,186.15,5.01356037]
[1762003122635,2.89,186.18,186.15,5.01356037]
[1762003123844,2.89,186.18,186.16,5.01356037]
[1762003124142,2.89,186.18,186.17,75.82]
[1762003124335,7.34440538,186.18,186.17,75.82]
[1762003124538,7.34453955,186.18,186.17,75.82]
[1762003124740,11.79187342,186.18,186.17,75.82]
[1762003124940,7.34453955,186.18,186.17,75.82]
[1762003125145,2.89,186.18,186.17,75.82]
[1762003125441,2.89,186.26,186.17,77.89636245]
[1762003125640,2.89,186.24,186.17,82.90992282]
[1762003125843,8.90185772,186.23,186.17,82.90992282]
[1762003126038,11.79185772,186.22,186.17,82.90992282]
[1762003126238,8.90185772,186.21,186.17,82.90992282]
[1762003126542,4.4543147,186.2,186.18,5.01356037]
[1762003126745,2.89,186.22,186.18,5.01356037]
[1762003127041,8.90331203,186.21,186.18,5.01356037]
[1762003127244,4.45492904,186.2,186.18,5.01356037]
[1762003127440,2.89,186.22,186.18,5.01356037]
[1762003127640,8.91448353,186.21,186.18,5.01356037]
[1762003127945,4.46585976,186.2,186.18,5.01356037]
[1762003128144,2.89,186.22,186.18,5.01356037]
[1762003128341,8.91496659,186.21,186.18,5.01356037]
[1762003128545,4.46610192,186.2,186.18,5.01356037]
[1762003128748,2.89,186.22,186.18,5.01356037]
[1762003128943,8.91521373,186.21,186.18,5.01356037]
[1762003129145,4.46622573,186.2,186.18,5.01356037]
[1762003129339,2.89,186.22,186.18,5.01356037]
[1762003129540,8.91530149,186.21,186.18,5.01356037]
[1762003129840,4.46626969,186.2,186.18,5.01356037]
[1762003130140,2.89,186.22,186.18,5.01356037]
[1762003130341,8.91573724,186.21,186.18,5.01356037]
[1762003130645,2.89,186.22,186.19,5.01356037]
[1762003130848,8.91571999,186.21,186.19,5.01356037]
[1762003131145,2.89,186.22,186.19,5.01356037]
[1762003131348,8.91571999,186.21,186.19,5.01356037]
[1762003131537,4.46640162,186.2,186.19,5.01356037]
[1762003132954,7.20640162,186.2,186.19,75.8]
[1762003133250,11.65629522,186.2,186.18,5.01356037]
[1762003133452,2.74,186.2,186.19,75.8]
[1762003133652,11.65691787,186.2,186.19,75.8]
[1762003134042,2.74,186.19,186.18,5.01356037]
[1762003134350,11.65713984,186.19,186.18,75.8]
[1762003137943,2.74,186.18,186.17,5.01356037]
[1762003138242,11.65713984,186.18,186.17,5.01356037]
[1762003138447,11.65713984,186.18,186.17,80.83356037]
[1762003138650,11.65713984,186.18,186.17,75.82]
[1762003139442,11.65713984,186.18,186.17,80.83356037]
[1762003141353,11.65713984,186.18,186.17,75.82]
[1762003144151,11.65713984,186.18,186.17,80.84464218]
[1762003144644,11.65713984,186.18,186.17,75.82]
[1762003146747,11.65713984,186.18,186.17,80.84494841]
[1762003146941,11.65713984,186.18,186.17,5.02494841]
[1762003147451,11.65713984,186.18,186.17,74.62494841]
[1762003149057,11.65713984,186.18,186.17,5.02494841]
[1762003149259,11.65713984,186.18,186.17,80.80494841]
[1762003150761,8.91713984,186.18,186.17,80.80494841]
[1762003150954,8.91713984,186.18,186.17,75.78]
[1762003159763,8.73944539,186.18,186.17,75.78]
[1762003169566,8.73944539,186.18,186.17,75.76]
[1762003169863,8.73944539,186.18,186.16,3.24667548]
[1762003170068,2.71,186.16,186.15,10.05539987]
[1762003170365,8.24375919,186.29,186.15,85.81539987]
[1762003170366,2.71,186.28,186.15,85.81539987]
[1762003170568,2.71,186.26,186.2,5.02930745]
[1762003170769,2.71,186.24,186.2,80.78930745]
[1762003170969,2.71,186.22,186.2,80.78930745]
[1762003171169,7.17356447,186.21,186.2,75.76]
[1762003171572,8.25356447,186.21,186.2,75.76]
[1762003171762,12.73064553,186.21,186.2,75.76]
[1762003175575,12.73141861,186.21,186.2,75.76]
[1762003176372,12.73141861,186.21,186.2,80.78930745]
[1762003179279,12.73141861,186.21,186.2,5.02930745]
[1762003179471,12.73141861,186.21,186.2,80.78930745]
[1762003182485,10.02141861,186.21,186.2,80.78930745]
[1762003182674,8.94141861,186.21,186.2,75.76]
[1762003184383,2.71,186.24,186.2,75.76]
[1762003184586,4.47859084,186.23,186.22,5.0305023]
[1762003184784,8.94363153,186.23,186.22,5.0305023]
[1762003186982,11.64363153,186.23,186.22,5.0305023]
[1762003188889,2.7,186.22,186.21,5.0305023]
[1762003189090,11.64363153,186.22,186.21,5.0305023]
[1762003189686,11.64363153,186.22,186.21,39.6505023]
[1762003190278,2.7,186.21,186.2,5.0305023]
[1762003190485,11.64363153,186.21,186.2,72.7105023]
[1762003190688,11.64363153,186.21,186.2,67.68]
[1762003194596,11.64363153,186.21,186.2,72.71088105]
[1762003201006,8.94363153,186.21,186.2,72.71088105]
[1762003201202,8.94363153,186.21,186.2,67.68]
[1762003203107,8.94363153,186.21,186.2,75.74]
[1762003204102,8.94363153,186.21,186.18,6.70538252]
[1762003204300,8.94363153,186.2,186.19,75.74]
[1762003206214,8.94363153,186.2,186.19,80.76997226]
[1762003208915,11.88363153,186.2,186.19,5.02997226]
[1762003209116,11.88363153,186.2,186.19,80.76997226]
[1762003209417,11.88363153,186.2,186.16,6.70538252]
[1762003209418,2.94,186.19,186.13,6.70538252]
[1762003209612,2.94,186.17,186.13,75.74]
[1762003209822,2.94,186.15,186.13,75.74]
[1762003210013,2.94,186.13,186.11,6.70538252]
[1762003210318,2.94,186.11,186.09,6.70538252]
[1762003210520,8.94363153,186.1,186.08,6.70538252]
[1762003210711,8.94363153,186.09,186.08,6.70538252]
[1762003211110,8.94363153,186.09,186.06,9.952058]
[1762003211321,2.94,186.12,186.07,75.8]
[1762003211609,12.30238715,186.11,186.07,75.8]
[1762003211814,9.36238715,186.1,186.07,75.8]
[1762003212008,9.36238715,186.09,186.07,75.8]
[1762003212216,9.36238715,186.08,186.07,75.8]
[1762003214121,4.79660195,186.08,186.07,75.8]
[1762003215227,2.94,186.11,186.07,75.8]
[1762003215420,9.34321957,186.1,186.07,75.8]
[1762003215622,9.34321957,186.09,186.07,75.8]
[1762003215822,2.94,186.11,186.07,75.8]
[1762003216022,9.34269247,186.1,186.07,75.8]
[1762003216325,9.34269247,186.09,186.07,75.8]
[1762003216530,2.91,186.14,186.07,75.8]
[1762003216721,12.24951786,186.13,186.07,75.8]
[1762003216922,12.24951786,186.12,186.07,75.8]
[1762003217115,12.24951786,186.11,186.07,75.8]
[1762003217320,9.33951786,186.1,186.07,75.8]
[1762003217627,4.78497021,186.09,186.07,75.8]
[1762003217829,2.91,186.11,186.07,75.8]
[1762003218024,9.33759402,186.1,186.07,75.8]
[1762003218226,4.78329975,186.09,186.07,75.8]
[1762003218426,2.91,186.11,186.07,75.8]
[1762003218626,9.33502982,186.1,186.07,75.8]
[1762003218830,4.78198621,186.09,186.07,75.8]
[1762003219130,2.91,186.11,186.07,75.8]
[1762003219323,9.33335297,186.1,186.07,75.8]
[1762003219521,4.78112722,186.09,186.08,75.78]
[1762003220127,2.91,186.11,186.06,2.07998977]
[1762003220323,9.33160705,186.1,186.08,75.78]
[1762003220525,4.78008322,186.09,186.08,75.78]
[1762003221323,2.91,186.08,186.03,2.07998977]
[1762003221529,2.91,186.07,186.04,75.78]
[1762003221731,2.07998977,186.15,186.02,0.9352576]
[1762003221732,2.91,186.1,186.02,0.9352576]
[1762003222036,2.91,186.08,186.03,77.85998977]
[1762003222629,2.91,186.08,186.03,75.78]
[1762003222829,7.68688551,186.07,186.03,75.78]
[1762003223029,2.91,186.07,186.03,75.78]
[1762003225241,2.91,186.07,186.04,75.78]
[1762003229431,4.7678578,186.06,186.03,75.78]
[1762003229744,4.99089216,186.2,186.03,75.8]
[1762003229745,2.85,186.05,186.03,75.8]
[1762003230333,2.85,186.05,185.98,2.07998977]
[1762003230539,2.85,186.05,185.99,75.8]
[1762003235148,2.85,186.1,185.99,75.8]
[1762003235349,2.85,186.08,185.99,75.8]
[1762003235645,2.85,186.06,185.99,75.8]
[1762003236243,2.85,186.06,185.99,77.87998977]
[1762003236645,2.85,186.04,185.99,77.87998977]
[1762003237546,2.85,186.04,185.99,75.8]
[1762003238247,2.85,186.04,186.0,75.82]
[1762003238650,2.85,186.04,185.97,3.01557424]
[1762003238949,2.85,186.04,185.98,47.46]
[1762003239150,2.85,186.04,185.99,66.5]
[1762003240850,2.85,186.04,185.99,75.8]
[1762003241550,2.85,186.04,185.97,3.01557424]
[1762003241744,2.85,186.04,185.99,75.8]
[1762003241945,2.85,186.04,185.97,3.01557424]
[1762003242149,2.85,186.04,185.99,75.8]
[1762003244053,2.85,186.03,185.99,75.8]
[1762003248756,2.85,186.03,185.99,75.82]
[1762003250156,9.37307486,186.02,185.99,75.82]
[1762003250361,2.85,186.03,185.99,75.82]
[1762003250560,9.37307486,186.02,185.99,75.82]
[1762003250769,2.85,186.03,185.99,75.82]
[1762003250952,9.37306639,186.02,185.99,75.82]
[1762003251152,2.85,186.03,185.99,75.82]
[1762003251355,9.37859282,186.02,185.99,75.82]
[1762003251559,2.85,186.03,185.99,75.82]